fUSD/lending_fUSD_20251112
["ID","MTS","AMOUNT","RATE_DAILY","PERIOD"]
[393681578,1762921848173,-536.59221167,0.00038899,20]
[393681579,1762921848182,-524.98643242,0.00038899,20]
[393681580,1762921848192,-500.0,0.00038899,20]
[393681581,1762921848201,-500.0,0.00038899,20]
[393681582,1762921848211,-500.0,0.00038899,20]
[393681583,1762921848220,-435.15917912,0.00038899,20]
[393681584,1762921848230,-500.0,0.00038899,20]
[393681585,1762921848240,-500.0,0.00038899,20]
[393681586,1762921848249,-500.0,0.00038899,20]
[393681587,1762921848259,-500.0,0.00038899,20]
[393681588,1762921848269,-500.0,0.00038899,20]
[393681589,1762921848278,-411.84700943,0.00038899,20]
[393681590,1762921848288,-500.0,0.00038899,20]
[393681591,1762921848298,-500.0,0.00038899,20]
[393681592,1762921848310,-500.0,0.00038899,20]
[393681593,1762921848319,-500.0,0.00038899,20]
[393681594,1762921848329,-500.0,0.00038899,20]
[393681595,1762921848338,-500.0,0.00038899,20]
[393681596,1762921848348,-500.0,0.00038899,20]
[393681597,1762921848359,-500.0,0.00038899,20]
[393681598,1762921848369,-500.0,0.00038899,20]
[393681599,1762921848379,-500.0,0.00038899,20]
[393681600,1762921848389,-500.0,0.00038899,20]
[393681601,1762921848400,-500.0,0.00038899,20]
[393681602,1762921848411,-513.77945621,0.00038899,20]
[393681603,1762921848420,-522.7,0.00038899,20]
[393681604,1762921848429,-500.0,0.00038899,20]
[393681605,1762921848438,-522.7,0.00038899,20]
[393681606,1762921848449,-601.56601519,0.00038899,20]
[393681607,1762921848459,-500.0,0.00038899,20]
[393681608,1762921848468,-500.0,0.00038899,20]
[393681609,1762921848478,-500.0,0.00038899,20]
[393681610,1762921848488,-500.0,0.00038899,20]
[393681611,1762921848497,-500.0,0.00038899,20]
[393681612,1762921848506,-500.0,0.00038899,20]
[393681613,1762921848515,-500.0,0.00038899,20]
[393681614,1762921848524,-500.0,0.00038899,20]
[393681615,1762921848534,-271.61712816,0.00038899,20]
[393681616,1762921848544,-500.0,0.00038899,20]
[393681617,1762921848554,-771.97,0.00038899,20]
[393681618,1762921848564,-771.97,0.00038899,20]
[393681619,1762921848573,-500.0,0.00038899,20]
[393681620,1762921848582,-500.0,0.00038899,20]
[393681621,1762921848591,-500.0,0.00038899,20]
[393681622,1762921848600,-500.0,0.00038899,20]
[393681623,1762921848611,-510.03217857,0.00038899,20]
[393681624,1762921848620,-191.2520282,0.00038899,20]
[393681625,1762921848629,-394.7206983,0.00038899,20]
[393681626,1762921848639,-500.0,0.00038899,20]
[393681627,1762921848648,-500.0,0.00038899,20]
[393681628,1762921848657,-500.0,0.00038899,20]
[393681629,1762921848667,-390.0,0.00038899,20]
[393681630,1762921848676,-500.0,0.00038899,20]
[393681631,1762921848685,-500.0,0.00038899,20]
[393681632,1762921848695,-500.0,0.00038899,20]
[393681633,1762921848704,-647.43,0.00038899,20]
[393681634,1762921848713,-500.0,0.00038899,20]
[393681635,1762921848723,-647.43,0.00038899,20]
[393681636,1762921848731,-500.0,0.00038899,20]
[393681637,1762921848741,-520.72076172,0.00038899,20]
[393681638,1762921848750,-403.31206832,0.00038899,20]
[393681639,1762921848759,-500.0,0.00038899,20]
[393681640,1762921848769,-163.80297359,0.00038899,20]
[393681641,1762921848778,-500.0,0.00038899,20]
[393681642,1762921848788,-500.0,0.00038899,20]
[393681643,1762921848797,-500.0,0.00038899,20]
[393681644,1762921848807,-500.0,0.00038899,20]
[393681645,1762921848817,-583.78,0.00038899,20]
[393681646,1762921848826,-583.78,0.00038899,20]
[393681647,1762921848836,-500.0,0.00038899,20]
[393681648,1762921848845,-622.29105784,0.00038899,20]
[393681649,1762921848854,-155.1144084,0.00038899,20]
[393681650,1762921848863,-1149.92,0.00038899,20]
[393681651,1762921848872,-1149.92,0.00038899,20]
[393681652,1762921848881,-611.94627296,0.00038899,20]
[393681653,1762921848891,-500.0,0.00038899,20]
[393681654,1762921848900,-265.29991487,0.00038899,20]
[393681655,1762921848909,-530.35,0.00038899,20]
[393681656,1762921848918,-530.35,0.00038899,20]
[393681657,1762921848927,-500.0,0.00038899,20]
[393681658,1762921848936,-500.0,0.00038899,20]
[393681659,1762921848946,-500.0,0.00038899,20]
[393681660,1762921848955,-500.0,0.00038899,20]
[393681661,1762921848964,-500.0,0.00038899,20]
[393681662,1762921848973,-500.0,0.00038899,20]
[393681663,1762921848983,-500.0,0.00038899,20]
[393681664,1762921848992,-161.60867153,0.00038899,20]
[393681665,1762921849002,-500.0,0.00038899,20]
[393681666,1762921849011,-500.0,0.00038899,20]
[393681667,1762921849021,-524.58809439,0.00038899,20]
[393681668,1762921849030,-500.0,0.00038899,20]
[393681669,1762921849039,-500.0,0.00038899,20]
[393681670,1762921849048,-500.0,0.00038899,20]
[393681671,1762921849057,-500.0,0.00038899,20]
[393681672,1762921849067,-500.0,0.00038899,20]
[393681673,1762921849085,-500.0,0.00038899,20]
[393681674,1762921849095,-549.2216202,0.00038899,20]
[393681675,1762921849105,-500.0,0.00038899,20]
[393681676,1762921849114,-500.0,0.00038899,20]
[393681677,1762921849124,-225.57860771,0.00038899,20]
[393681678,1762921849134,-500.0,0.00038899,20]
[393681679,1762921849145,-500.0,0.00038899,20]
[393681680,1762921849154,-500.0,0.00038899,20]
[393681681,1762921849164,-500.0,0.00038899,20]
[393681682,1762921849174,-500.0,0.00038899,20]
[393681683,1762921849184,-498.81623145,0.00038899,20]
[393681684,1762921849194,-500.0,0.00038899,20]
[393681685,1762921849204,-500.0,0.00038899,20]
[393681686,1762921849213,-500.0,0.00038899,20]
[393681687,1762921849223,-500.0,0.00038899,20]
[393681688,1762921849232,-558.3565559,0.00038899,20]
[393681689,1762921849242,-500.0,0.00038899,20]
[393681690,1762921849251,-288.76000001,0.00038899,20]
[393681691,1762921849260,-500.0,0.00038899,20]
[393681692,1762921849270,-500.0,0.00038899,20]
[393681693,1762921849391,-426.61061799,0.00038899,20]
[393681694,1762921849405,-500.0,0.00038899,20]
[393681695,1762921849414,-500.0,0.00038899,20]
[393681696,1762921849424,-500.0,0.00038899,20]
[393681697,1762921849435,-304.04269117,0.00038899,20]
[393681698,1762921849445,-500.0,0.00038899,20]
[393681699,1762921849454,-500.0,0.00038899,20]
[393681700,1762921849463,-500.0,0.00038899,20]
[393681701,1762921849472,-500.0,0.00038899,20]
[393681702,1762921849484,-500.0,0.00038899,20]
[393681703,1762921849493,-500.0,0.00038899,20]
[393681704,1762921849503,-500.0,0.00038899,20]
[393681705,1762921849512,-500.0,0.00038899,20]
[393681706,1762921849521,-500.0,0.00038899,20]
[393681707,1762921849531,-204.65204917,0.00038899,20]
[393681708,1762921849540,-500.0,0.00038899,20]
[393681709,1762921849549,-500.0,0.00038899,20]
[393681710,1762921849559,-500.0,0.00038899,20]
[393681711,1762921849568,-500.0,0.00038899,20]
[393681712,1762921849577,-500.0,0.00038899,20]
[393681713,1762921849586,-500.0,0.00038899,20]
[393681714,1762921849595,-500.0,0.00038899,20]
[393681715,1762921849605,-500.0,0.00038899,20]
[393681716,1762921849614,-500.0,0.00038899,20]
[393681717,1762921849623,-500.0,0.00038899,20]
[393681718,1762921849632,-500.0,0.00038899,20]
[393681719,1762921849641,-500.0,0.00038899,20]
[393681720,1762921849650,-504.13,0.00038899,20]
[393681721,1762921849659,-504.13,0.00038899,20]
[393681722,1762921849668,-500.0,0.00038899,20]
[393681723,1762921849678,-500.0,0.00038899,20]
[393681724,1762921849687,-506.90781343,0.00038899,20]
[393681725,1762921849696,-500.0,0.00038899,20]
[393681726,1762921849705,-287.12126513,0.00038899,20]
[393681727,1762921849714,-515.70237863,0.00038899,20]
[393681728,1762921849723,-500.0,0.00038899,20]
[393681729,1762921849733,-503.21930607,0.00038899,20]
[393681730,1762921849742,-500.0,0.00038899,20]
[393681731,1762921849751,-500.0,0.00038899,20]
[393681732,1762921849761,-500.0,0.00038899,20]
[393681733,1762921849770,-500.0,0.00038899,20]
[393681734,1762921849779,-500.0,0.00038899,20]
[393681735,1762921849789,-613.757854,0.00038899,20]
[393681736,1762921849798,-500.0,0.00038899,20]
[393681737,1762921849808,-290.43214388,0.00038899,20]
[393681738,1762921849817,-610.64041891,0.00038899,20]
[393681739,1762921849826,-500.0,0.00038899,20]
[393681740,1762921849835,-500.0,0.00038899,20]
[393681741,1762921849844,-523.3080346,0.00038899,20]
[393681742,1762921849854,-500.0,0.00038899,20]
[393681743,1762921849863,-500.0,0.00038899,20]
[393681744,1762921849872,-500.0,0.00038899,20]
[393681745,1762921849881,-500.0,0.00038899,20]
[393681746,1762921849890,-573.48,0.00038899,20]
[393681747,1762921849900,-500.0,0.00038899,20]
[393681748,1762921849910,-500.0,0.00038899,20]
[393681749,1762921849919,-573.48,0.00038899,20]
[393681750,1762921849929,-500.0,0.00038899,20]
[393681751,1762921849938,-500.0,0.00038899,20]
[393681752,1762921849947,-500.0,0.00038899,20]
[393681753,1762921849956,-500.0,0.00038899,20]
[393681754,1762921849966,-500.0,0.00038899,20]
[393681755,1762921849975,-502.79318555,0.00038899,20]
[393681756,1762921849984,-605.03,0.00038899,20]
[393681757,1762921849993,-500.0,0.00038899,20]
[393681758,1762921850002,-605.03,0.00038899,20]
[393681759,1762921850012,-529.81329583,0.00038899,20]
[393681760,1762921850021,-500.0,0.00038899,20]
[393681761,1762921850030,-557.16529708,0.00038899,20]
[393681762,1762921850039,-500.0,0.00038899,20]
[393681763,1762921850048,-500.0,0.00038899,20]
[393681764,1762921850058,-500.0,0.00038899,20]
[393681765,1762921850067,-500.0,0.00038899,20]
[393681766,1762921850076,-163.318127,0.00038899,20]
[393681767,1762921850086,-500.0,0.00038899,20]
[393681768,1762921850095,-500.0,0.00038899,20]
[393681769,1762921850104,-500.0,0.00038899,20]
[393681770,1762921850113,-500.0,0.00038899,20]
[393681771,1762921850123,-407.06844784,0.00038899,20]
[393681772,1762921850132,-500.0,0.00038899,20]
[393681773,1762921850142,-500.0,0.00038899,20]
[393681774,1762921850151,-500.0,0.00038899,20]
[393681775,1762921850160,-500.0,0.00038899,20]
[393681776,1762921850169,-151.23535257,0.00038899,20]
[393681777,1762921850179,-239.826167,0.00038899,20]
[393681778,1762921850188,-500.0,0.00038899,20]
[393681779,1762921850198,-651.55,0.00038899,20]
[393681780,1762921850206,-239.826167,0.00038899,20]
[393681781,1762921850216,-500.0,0.00038899,20]
[393681782,1762921850225,-651.55,0.00038899,20]
[393681783,1762921850234,-500.0,0.00038899,20]
[393681784,1762921850243,-500.0,0.00038899,20]
[393681785,1762921850253,-519.05892281,0.00038899,20]
[393681786,1762921850262,-500.0,0.00038899,20]
[393681787,1762921850272,-484.61864499,0.00038899,20]
[393681788,1762921850282,-500.0,0.00038899,20]
[393681789,1762921850291,-500.0,0.00038899,20]
[393681790,1762921850301,-500.0,0.00038899,20]
[393681791,1762921850310,-376.383627,0.00038899,20]
[393681792,1762921850320,-376.383627,0.00038899,20]
[393681793,1762921850329,-500.0,0.00038899,20]
[393681794,1762921850338,-500.0,0.00038899,20]
[393681795,1762921850348,-500.0,0.00038899,20]
[393681796,1762921850357,-500.0,0.00038899,20]
[393681797,1762921850366,-159.00842274,0.00038899,20]
[393681798,1762921850375,-500.0,0.00038899,20]
[393681799,1762921850385,-500.0,0.00038899,20]
[393681800,1762921850395,-500.0,0.00038899,20]
[393681801,1762921850409,-578.63941547,0.00038899,20]
[393681802,1762921850418,-500.0,0.00038899,20]
[393681803,1762921850427,-500.0,0.00038899,20]
[393681804,1762921850436,-505.82963849,0.00038899,20]
[393681805,1762921850447,-500.0,0.00038899,20]
[393681806,1762921850456,-500.0,0.00038899,20]
[393681807,1762921850465,-500.0,0.00038899,20]
[393681808,1762921850475,-500.0,0.00038899,20]
[393681809,1762921850484,-201.68098245,0.00038899,20]
[393681810,1762921850494,-500.0,0.00038899,20]
[393681811,1762921850503,-500.0,0.00038899,20]
[393681812,1762921850512,-500.0,0.00038899,20]
[393681813,1762921850522,-500.0,0.00038899,20]
[393681814,1762921850531,-604.658152,0.00038899,20]
[393681815,1762921850541,-460.0,0.00038899,20]
[393681816,1762921850623,-460.0,0.00038899,20]
[393681817,1762921850632,-420000.0,0.000389,2]
[393681818,1762921850642,-309.09538691,0.000389,31]
[393681819,1762921850651,-454.93521513,0.000389,120]
[393681820,1762921850660,-150.78,0.00038962,120]
[393681821,1762921850670,-183.38033361,0.00039,30]
[393681822,1762921850679,-2018.60847731,0.00039,120]
[393681823,1762921850688,-150.0,0.00039158,2]
[393681824,1762921850698,-758.36,0.00039173,30]
[393681825,1762921850707,-921.37351887,0.0003918,120]
[393681826,1762921850716,-1104.79026923,0.00039212,20]
[393681827,1762921850725,-1054.98418043,0.00039212,20]
[393681828,1762921850734,-1149.22885774,0.00039212,20]
[393681829,1762921850743,-1064.13657794,0.00039212,20]
[393681830,1762921850752,-1138.20313721,0.00039212,20]
[393681831,1762921850761,-1046.25621746,0.00039212,20]
[393681832,1762921850771,-1053.74619691,0.00039212,20]
[393681833,1762921850780,-1046.74988504,0.00039212,20]
[393681834,1762921850789,-1115.21991021,0.00039321,5]
[393681835,1762921850799,-240.0,0.00039438,7]
[393681836,1762921850808,-500.0,0.00039441,7]
[393681837,1762921850818,-500.0,0.00039441,20]
[393681838,1762921850827,-500.0,0.00039441,7]
[393681839,1762921850836,-500.0,0.00039441,20]
[393681840,1762921850846,-500.0,0.00039441,20]
[393681841,1762921850855,-258.39361948,0.00039441,20]
[393681842,1762921850864,-582.41353062,0.00039441,20]
[393681843,1762921850874,-500.0,0.00039441,20]
[393681844,1762921850883,-969.65,0.00039441,20]
[393681845,1762921850893,-500.0,0.00039441,20]
[393681846,1762921850903,-500.0,0.00039441,20]
[393681847,1762921850911,-500.0,0.00039441,20]
[393681848,1762921850921,-500.0,0.00039441,20]
[393681849,1762921850930,-500.0,0.00039441,20]
[393681850,1762921850939,-500.0,0.00039441,20]
[393681851,1762921850948,-500.0,0.00039441,20]
[393681852,1762921850958,-500.0,0.00039441,20]
[393681853,1762921850967,-500.0,0.00039441,20]
[393681854,1762921850976,-500.0,0.00039441,20]
[393681855,1762921850985,-500.0,0.00039441,20]
[393681856,1762921850995,-500.0,0.00039441,20]
[393681857,1762921851004,-758.36,0.00039447,30]
[393681858,1762921851014,-1000.0,0.00039452,120]
[393681859,1762921851023,-1000.0,0.00039452,120]
[393681860,1762921851033,-1000.0,0.00039452,120]
[393681861,1762921851042,-580.52998147,0.00039452,120]
[393681862,1762921851052,-1175.84671,0.0003961,2]
[393681863,1762921851061,-188.71,0.00039654,2]
[393681864,1762921851070,-1000.0,0.000397,2]
[393681865,1762921851079,-758.36,0.00039721,30]
[393681866,1762921851088,-153.0,0.00039747,120]
[393681867,1762921851098,-153.0,0.00039748,120]
[393681868,1762921851107,-153.0,0.00039748,120]
[393681869,1762921851117,-1000.0,0.00039793,2]
[393681870,1762921851127,-512.65079329,0.00039869,30]
[393681871,1762921851136,-500.0,0.00039898,20]
[393681872,1762921851145,-262.36772701,0.00039899,2]
[393681873,1762921851165,-500.0,0.00039899,20]
[393681874,1762921851184,-500.0,0.00039899,20]
[393681875,1762921851203,-500.0,0.00039899,20]
[393681876,1762921851224,-500.0,0.00039899,20]
[393681877,1762921851239,-500.0,0.00039899,20]
[393681878,1762921851258,-500.0,0.00039899,20]
[393681879,1762921851279,-500.0,0.00039899,20]
[393681880,1762921851296,-522.7,0.00039899,20]
[393681881,1762921851315,-500.0,0.00039899,20]
[393681882,1762921851331,-500.0,0.00039899,20]
[393681883,1762921851352,-500.0,0.00039899,20]
[393681884,1762921851367,-530.35,0.00039899,20]
[393681885,1762921851381,-500.0,0.00039899,20]
[393681886,1762921851401,-500.0,0.00039899,20]
[393681887,1762921851414,-500.0,0.00039899,20]
[393681888,1762921851431,-500.0,0.00039899,20]
[393681889,1762921851445,-500.0,0.00039899,20]
[393681890,1762921851459,-500.0,0.00039899,20]
[393681891,1762921851474,-504.13,0.00039899,20]
[393681892,1762921851489,-500.0,0.00039899,20]
[393681893,1762921851503,-573.48,0.00039899,20]
[393681894,1762921851517,-500.0,0.00039899,20]
[393681895,1762921851531,-500.0,0.00039899,20]
[393681896,1762921851545,-500.0,0.00039899,20]
[393681897,1762921851559,-500.0,0.00039899,20]
[393681898,1762921851573,-500.0,0.00039899,20]
[393681899,1762921851587,-500.0,0.00039899,20]
[393681900,1762921851601,-500.0,0.00039899,20]
[393681901,1762921851615,-500.0,0.00039899,20]
[393681902,1762921851629,-500.0,0.00039899,20]
[393681903,1762921851643,-500.0,0.00039899,20]
[393681904,1762921851656,-230.03635612,0.000399,20]
[393681905,1762921851671,-500.0,0.000399,20]
[393681906,1762921851685,-590.09658189,0.000399,20]
[393681907,1762921851699,-530.05485785,0.000399,20]
[393681908,1762921851714,-500.0,0.000399,20]
[393681909,1762921851728,-500.0,0.000399,20]
[393681910,1762921851742,-500.0,0.000399,20]
[393681911,1762921851756,-500.0,0.000399,20]
[393681912,1762921851770,-500.0,0.000399,20]
[393681913,1762921851784,-500.0,0.000399,20]
[393681914,1762921851798,-500.0,0.000399,20]
[393681915,1762921851813,-500.0,0.000399,20]
[393681916,1762921851826,-500.0,0.000399,20]
[393681917,1762921851841,-500.0,0.000399,20]
[393681918,1762921851854,-500.0,0.000399,20]
[393681919,1762921851868,-500.0,0.000399,20]
[393681920,1762921851882,-160.695088,0.000399,20]
[393681921,1762921851895,-163.286133,0.000399,20]
[393681922,1762921851909,-1289.015391,0.000399,20]
[393681923,1762921851923,-500.0,0.000399,20]
[393681924,1762921851937,-500.0,0.000399,20]
[393681925,1762921851952,-431.200726,0.000399,20]
[393681926,1762921851968,-1266.488629,0.000399,20]
[393681927,1762921851977,-762.39,0.000399,20]
[393681928,1762921851986,-517.46906868,0.000399,20]
[393681929,1762921852139,-500.0,0.000399,20]
[393681930,1762921852150,-500.0,0.000399,20]
[393681931,1762921852160,-500.0,0.000399,20]
[393681932,1762921852169,-500.0,0.000399,20]
[393681933,1762921852180,-500.0,0.000399,20]
[393681934,1762921852191,-500.0,0.000399,20]
[393681935,1762921852200,-551.57,0.000399,20]
[393681936,1762921852210,-500.0,0.000399,20]
[393681937,1762921852219,-500.0,0.000399,20]
[393681938,1762921852230,-500.0,0.000399,20]
[393681939,1762921852239,-692.84,0.000399,20]
[393681940,1762921852250,-500.0,0.000399,20]
[393681941,1762921852260,-645.41,0.000399,2]
[393681942,1762921852269,-772.03,0.000399,20]
[393681943,1762921852279,-631.53,0.000399,20]
[393681944,1762921852288,-500.0,0.000399,20]
[393681945,1762921852298,-500.0,0.000399,20]
[393681946,1762921852308,-500.0,0.000399,20]
[393681947,1762921852317,-500.0,0.000399,20]
[393681948,1762921852326,-500.0,0.000399,20]
[393681949,1762921852336,-500.0,0.000399,20]
[393681950,1762921852346,-500.0,0.000399,20]
[393681951,1762921852355,-490.58976912,0.000399,20]
[393681952,1762921852365,-500.0,0.000399,20]
[393681953,1762921852375,-500.0,0.000399,20]
[393681954,1762921852384,-500.0,0.000399,20]
[393681955,1762921852396,-500.0,0.000399,20]
[393681956,1762921852410,-500.0,0.000399,20]
[393681957,1762921852422,-500.0,0.000399,20]
[393681958,1762921852435,-534.33202026,0.000399,20]
[393681959,1762921852447,-233.35561789,0.000399,20]
[393681960,1762921852458,-500.0,0.000399,20]
[393681961,1762921852470,-500.0,0.000399,20]
[393681962,1762921852484,-500.0,0.000399,20]
[393681963,1762921852496,-1149.92,0.000399,20]
[393681964,1762921852508,-535.80273977,0.000399,20]
[393681965,1762921852519,-500.0,0.000399,20]
[393681966,1762921852530,-500.0,0.000399,20]
[393681967,1762921852542,-326.01884327,0.000399,20]
[393681968,1762921852554,-500.0,0.000399,20]
[393681969,1762921852566,-438.42614455,0.000399,20]
[393681970,1762921852578,-244.30436206,0.000399,20]
[393681971,1762921852590,-242.33964015,0.000399,20]
[393681972,1762921852602,-500.0,0.000399,20]
[393681973,1762921852614,-500.0,0.000399,20]
[393681974,1762921852625,-500.0,0.000399,20]
[393681975,1762921852637,-500.0,0.000399,20]
[393681976,1762921852649,-239.826167,0.000399,20]
[393681977,1762921852661,-376.383627,0.000399,20]
[393681978,1762921852672,-348.85904347,0.000399,20]
[393681979,1762921852684,-1000.0,0.00039901,10]
[393681980,1762921852696,-949.0,0.00039901,10]
[393681981,1762921852709,-1000.0,0.00039901,10]
[393681982,1762921852721,-1000.0,0.00039901,10]
[393681983,1762921852733,-1000.0,0.00039901,10]
[393681984,1762921852744,-1000.0,0.00039901,10]
[393681985,1762921852756,-576.03511208,0.00039901,20]
[393681986,1762921852765,-500.0,0.00039901,20]
[393681987,1762921852773,-518.82676966,0.00039901,20]
[393681988,1762921852780,-500.0,0.00039901,20]
[393681989,1762921852786,-500.0,0.00039901,20]
[393681990,1762921852793,-500.0,0.00039901,20]
[393681991,1762921852799,-500.0,0.00039901,20]
[393681992,1762921852806,-500.0,0.00039901,20]
[393681993,1762921852812,-500.0,0.00039901,20]
[393681994,1762921852819,-500.0,0.00039901,20]
[393681995,1762921852825,-522.98698191,0.00039901,20]
[393681996,1762921852831,-519.42926338,0.00039901,20]
[393681997,1762921852838,-500.0,0.00039901,20]
[393681998,1762921852845,-500.0,0.00039901,20]
[393681999,1762921852852,-500.0,0.00039901,20]
[393682000,1762921852860,-500.0,0.00039901,20]
[393682001,1762921852869,-500.0,0.00039901,20]
[393682002,1762921852879,-500.0,0.00039901,20]
[393682003,1762921852888,-500.0,0.00039901,20]
[393682004,1762921852897,-500.0,0.00039901,20]
[393682005,1762921852908,-573.75855356,0.00039901,20]
[393682006,1762921852917,-500.0,0.00039901,20]
[393682007,1762921852927,-500.0,0.00039901,20]
[393682008,1762921852936,-500.0,0.00039901,20]
[393682009,1762921852945,-500.0,0.00039901,20]
[393682010,1762921852955,-448.64,0.00039901,20]
[393682011,1762921852964,-500.0,0.00039901,20]
[393682012,1762921852973,-500.0,0.00039901,20]
[393682013,1762921852982,-500.0,0.00039901,20]
[393682014,1762921852991,-484.53932842,0.00039901,20]
[393682015,1762921853000,-500.0,0.00039901,20]
[393682016,1762921853010,-560.36014325,0.00039901,20]
[393682017,1762921853019,-500.0,0.00039901,20]
[393682018,1762921853028,-500.0,0.00039901,20]
[393682019,1762921853037,-500.0,0.00039901,20]
[393682020,1762921853047,-500.0,0.00039901,20]
[393682021,1762921853057,-500.0,0.00039901,20]
[393682022,1762921853070,-500.0,0.00039901,20]
[393682023,1762921853080,-500.0,0.00039901,20]
[393682024,1762921853089,-500.0,0.00039901,20]
[393682025,1762921853099,-500.0,0.00039901,20]
[393682026,1762921853109,-500.0,0.00039901,20]
[393682027,1762921853119,-500.0,0.00039901,10]
[393682028,1762921853128,-500.0,0.00039901,20]
[393682029,1762921853138,-500.0,0.00039901,20]
[393682030,1762921853148,-500.0,0.00039901,20]
[393682031,1762921853158,-500.0,0.00039901,20]
[393682032,1762921853168,-500.0,0.00039901,20]
[393682033,1762921853177,-500.0,0.00039901,20]
[393682034,1762921853187,-500.0,0.00039901,20]
[393682035,1762921853198,-500.0,0.00039901,20]
[393682036,1762921853207,-567.52,0.00039901,20]
[393682037,1762921853217,-500.0,0.00039901,20]
[393682038,1762921853227,-500.0,0.00039901,20]
[393682039,1762921853237,-500.0,0.00039901,20]
[393682040,1762921853247,-500.0,0.00039901,20]
[393682041,1762921853257,-500.0,0.00039901,20]
[393682042,1762921853266,-500.0,0.00039901,20]
[393682043,1762921853275,-500.0,0.00039901,20]
[393682044,1762921853284,-500.0,0.00039901,20]
[393682045,1762921853294,-500.0,0.00039901,20]
[393682046,1762921853304,-500.0,0.00039901,20]
[393682047,1762921853314,-500.0,0.00039901,20]
[393682048,1762921853326,-500.0,0.00039901,20]
[393682049,1762921853336,-500.0,0.00039901,20]
[393682050,1762921853345,-500.0,0.00039901,20]
[393682051,1762921853355,-500.0,0.00039901,20]
[393682052,1762921853365,-583.78,0.00039901,20]
[393682053,1762921853374,-500.0,0.00039901,20]
[393682054,1762921853385,-500.0,0.00039901,20]
[393682055,1762921853396,-500.0,0.00039901,20]
[393682056,1762921853408,-500.0,0.00039901,20]
[393682057,1762921853417,-500.0,0.00039901,20]
[393682058,1762921853426,-500.0,0.00039902,15]
[393682059,1762921853436,-529.09218094,0.00039902,30]
[393682060,1762921853446,-500.0,0.00039902,20]
[393682061,1762921853456,-282.52,0.00039902,20]
[393682062,1762921853465,-331.26125884,0.00039902,20]
[393682063,1762921853475,-500.0,0.00039902,20]
[393682064,1762921853485,-500.0,0.00039902,20]
[393682065,1762921853494,-500.0,0.00039902,20]
[393682066,1762921853504,-500.0,0.00039902,20]
[393682067,1762921853514,-500.0,0.00039908,20]
[393682068,1762921853524,-500.0,0.00039908,7]
[393682069,1762921853534,-291.34730838,0.00039908,20]
[393682070,1762921853543,-500.0,0.00039908,20]
[393682071,1762921853553,-500.0,0.00039908,20]
[393682072,1762921853562,-969.65,0.00039908,20]
[393682073,1762921853572,-500.0,0.00039908,20]
[393682074,1762921853581,-500.0,0.00039908,20]
[393682075,1762921853591,-500.0,0.00039908,20]
[393682076,1762921853600,-500.0,0.00039908,20]
[393682077,1762921853610,-500.0,0.00039908,20]